Cogmind - Beta 13 @@@ ROGUE MODE // 2024.05.15 @ 17:14:00 Player: Kate+Gabe4evr Result: Destroyed by S-10 Pest with Light Assault Rifle Performance ------------- Evolutions (1) 500 Regions Visited (3) 600 Robots Destroyed (5) 25 Value Destroyed (217) 217 Prototype IDs (1) 20 Alien Tech Used (0) 0 Bonus (0) 0 TOTAL SCORE: 1362 Bonus ------- None Cogmind --------- Core Integrity 0/400 Matter 267/300 Energy 100/100 System Corruption 0% Temperature Cool (0) Movement Core (100) Ox1 Location -9/Mines Parts ------- > --- POWER (1) -------- (None) > --- PROPULSION (3) --- (None) > --- UTILITY (2) ------ Small Storage Unit > --- WEAPON (3) ------- (None) > --- INVENTORY (8) ---- Heavy Ion Engine Heavy Ion Engine Light Assault Rifle Peak State ------------ > --- POWER ------------ Heavy Ion Engine > --- PROPULSION ------- Light Treads Light Treads > --- UTILITY ---------- Small Storage Unit > --- WEAPON ----------- Particle Gun Light Assault Rifle > --- INVENTORY -------- Heavy Ion Engine Heavy Ion Engine Grenade Launcher [Rating: 9] Favorites ----------- Power Heavy Ion Engine Engine Heavy Ion Engine Propulsion Light Treads Treads Light Treads Hover Unit Hover Unit Utility Small Storage Unit Storage Small Storage Unit Weapon Particle Gun Energy Gun Particle Gun Ballistic Gun Light Assault Rifle Launcher Grenade Launcher Build | -11 -10 -9 -9 ------- Run | Yrd Mat Mat Min Slots Evolved 2 | . . 2 . Power . | . . . . Propulsion 1 | . . 1 . Utility . | . . . . Weapon 1 | . . 1 . Parts Attached 10 | 6 2 2 . Power 2 | 1 1 . . Engine 2 | 1 1 . . Core . | . . . . Reactor . | . . . . Propulsion 3 | 2 . 1 . Treads 2 | 2 . . . Leg . | . . . . Wheel . | . . . . Hover 1 | . . 1 . Flight . | . . . . Utility 1 | 1 . . . Device . | . . . . Storage 1 | 1 . . . Processor . | . . . . Hackware . | . . . . Protection . | . . . . Artifact . | . . . . Weapon 4 | 2 1 1 . Energy Gun 1 | . 1 . . Energy Cannon . | . . . . Ballistic Gun 2 | 2 . . . Ballistic Cannon . | . . . . Launcher 1 | . . 1 . Special Weapon . | . . . . Impact Weapon . | . . . . Slashing Weapon . | . . . . Piercing Weapon . | . . . . Special Melee Weapon . | . . . . Unidentified Prototypes 1 | . 1 . . Parts Lost 7 | . 2 5 . Power 1 | . . 1 . Propulsion 3 | . . 3 . Utility . | . . . . Weapon 3 | . 2 1 . Highest Loss Streak 5 | . 1 5 . To Critical Strikes . | . . . . Average Slot Usage (%) 66 | . 76 26 11 Engine 11 | . 13 5 . Treads 23 | . 28 6 . Storage 13 | . 14 11 11 Energy Gun 6 | . 8 . . Ballistic Gun 8 | . 11 . . Naked Turns . | . . . . Heaviest Build 17 | 13 17 16 5 Greatest Support 40 | 40 40 40 3 Greatest Overweight (x) 5 | 4 . 5 1 Average Overweight (x) . | . . . 1 Largest Inventory Capacity 8 | 8 8 8 8 Average Capacity 7 | 7 8 8 8 Most Carried 4 | 1 4 4 3 Average Carried 3 | . 3 3 3 Final Capacity 8 | 8 8 8 8 Final Carried 4 | 1 4 3 3 Class Distribution -------------------- 100% | Mutant Dominant Class ---------------- Mutant | -10/Materials Mutant | -9/Materials Mutant | -9/Mines Resources | -11 -10 -9 -9 ----------- Run | Yrd Mat Mat Min Matter Collected 331 | 191 118 22 . Remotely . | . . . . Salvage Created 140 | . 120 20 . Parts 6 | . 5 1 . Haulers Intercepted . | . . . . Recyclers Shooed . | . . . . Parts Field Recycled . | . . . . Retrieved Matter . | . . . . Parts Self-Destructed . | . . . . Prevented . | . . . . Kills | -11 -10 -9 -9 ------- Run | Yrd Mat Mat Min Combat Hostiles Destroyed 5 | . 3 2 . Melee 1 | . 1 . . Guns 2 | . 2 . . AOE 2 | . . 2 . Classes Destroyed 2 | . 1 1 . Grunt 4 | . 3 1 . Sentry 1 | . . 1 . Best Kill Streak 2 | . 2 2 . Combat Bots Only 2 | . 2 2 . Max Kills in Single Turn 1 | . 1 1 . Gunslinging . | . . . . Exploded 1 | . . 1 . Melee 1 | . 1 . . Uniques/NPCs Destroyed . | . . . . Combat | -11 -10 -9 -9 -------- Run | Yrd Mat Mat Min Hostile Shots Fired 148 | . 66 71 11 Missed 38 | . 16 20 2 Damage Taken 1343 | . 656 618 69 Core 535 | . 132 348 55 Absorbed by Shields . | . . . . Core Remaining (%) 73 | 100 47 . . Volleys Fired 26 | . 20 6 . Largest 2 | . 2 1 . Hottest 85 | . 85 30 . Shots Fired 42 | . 36 6 . Gun 36 | . 36 . . Cannon . | . . . . Launcher 6 | . . 6 . Special . | . . . . Kinetic 27 | . 27 . . Thermal 9 | . 9 . . Explosive 6 | . . 6 . Electromagnetic . | . . . . Robot Hit Streak 9 | . 9 2 . Robot Miss Streak 2 | . 2 1 . Penetration Max . | . . . . Secondary Targets . | . . . . Shots Hit Robots 30 | . 26 4 . Core Hits 15 | . 9 6 . Critical Kills . | . . . . Critical Parts Destroyed 1 | . 1 . . Critical Strikes 2 | . 2 . . Burn 1 | . 1 . . Destroy 1 | . 1 . . Melee Attacks . | . . . . Impact . | . . . . Slashing . | . . . . Piercing . | . . . . Sneak Attacks . | . . . . Combat Hostiles . | . . . . Follow-up Attacks . | . . . . Damage Inflicted 628 | . 289 339 . Guns 279 | . 279 . . Cannons . | . . . . Explosions 339 | . . 339 . Melee . | . . . . Ramming 10 | . 10 . . Kinetic 200 | . 200 . . Thermal 79 | . 79 . . Explosive 339 | . . 339 . Electromagnetic . | . . . . Impact . | . . . . Slashing . | . . . . Piercing . | . . . . Highest Corruption 8 | . 8 . . Average Corruption 4 | . 4 . . Corruption Purged . | . . . . Corruption Blocked . | . . . . Effects 2 | . 2 . . Message Errors 1 | . 1 . . Heat Flow Errors 1 | . 1 . . Overload Shots . | . . . . Overflow Damage . | . . . . Projectiles . | . . . . Explosions . | . . . . Melee . | . . . . Knockbacks . | . . . . Impact . | . . . . Kinetic . | . . . . Secondary . | . . . . Self-Inflicted Damage 32 | . . 32 . Shots 1 | . . 1 . Rammed 5 | . 5 . . Targets Rammed 6 | . 6 . . Kicked . | . . . . Crushed 1 | . 1 . . Highest Temperature 441 | . 441 8 . Average Temperature 145 | . 152 3 . Received Heat Transfer 543 | . 393 150 . Effects 2 | . 2 . . Shutdowns 1 | . 1 . . Short Circuit 1 | . 1 . . Siege Activations . | . . . . Robots Corrupted . | . . . . Combat Hostiles . | . . . . Parts Fried . | . . . . Impact Corruptions . | . . . . Robots Melted . | . . . . Combat Hostiles . | . . . . Parts Melted . | . . . . Heat Transferred 259 | . 259 . . Parts Sabotaged . | . . . . Parts Stolen . | . . . . Parts Stripped . | . . . . Power Chain Reactions . | . . . . Alert | -11 -10 -9 -9 ------- Run | Yrd Mat Mat Min Peak Influence 115 | . 115 102 46 Initial 31 | . . . 31 Average 42 | . 48 47 35 Maximum Alert Level . | . . . . Low Security (%) 100 | 100 100 100 100 Level 1 . | . . . . Level 2 . | . . . . Level 3 . | . . . . Level 4 . | . . . . Level 5 . | . . . . High Security . | . . . . Max Security . | . . . . Squads Dispatched . | . . . . Investigation . | . . . . Extermination . | . . . . Reinforcement . | . . . . Assault . | . . . . Garrison . | . . . . Intercept . | . . . . Searches Triggered . | . . . . Construction Impeded . | . . . . Haulers Reinforced . | . . . . Active Scanning Responses . | . . . . Cargo Convoy Interrupts . | . . . . Stealth | -11 -10 -9 -9 --------- Run | Yrd Mat Mat Min Distress Signals 2 | . 1 1 . Communications Jammed . | . . . . Distress Signals . | . . . . Times Spotted 23 | . 11 8 4 Peak Tracking Total 6 | . 6 5 3 Tactical Retreats 3 | . 2 . 1 Traps | -11 -10 -9 -9 ------- Run | Yrd Mat Mat Min Traps Triggered 4 | . 4 . . Indirectly . | . . . . Trap Hack Attempts . | . . . . Triggered . | . . . . Disarmed . | . . . . Reprogrammed . | . . . . Reused . | . . . . Traps Extracted . | . . . . Installed . | . . . . Triggered . | . . . . Machines | -11 -10 -9 -9 ---------- Run | Yrd Mat Mat Min Machines Disabled 1 | . . 1 . Max in Single Turn 1 | . . 1 . Machines Repaired . | . . . . Machines Dismantled . | . . . . Machines Sabotaged . | . . . . Overloaded Fab Kills . | . . . . Hacking | -11 -10 -9 -9 --------- Run | Yrd Mat Mat Min Machines Accessed . | . . . . Terminals . | . . . . Fabricators . | . . . . Repair Stations . | . . . . Recycling Units . | . . . . Scanalyzers . | . . . . Garrison Access . | . . . . Total Hacks . | . . . . Successful . | . . . . Failed . | . . . . Catastrophic . | . . . . Database Lockouts . | . . . . Manual . | . . . . Terminals . | . . . . Fabricators . | . . . . Repair Stations . | . . . . Recycling Units . | . . . . Scanalyzers . | . . . . Garrison Access . | . . . . Terminal Hacks . | . . . . Fabricator Hacks . | . . . . Repair Station Hacks . | . . . . Recycling Unit Hacks . | . . . . Scanalyzer . | . . . . Garrison Access Hacks . | . . . . Unauthorized Hacks . | . . . . Terminals . | . . . . Fabricators . | . . . . Repair Stations . | . . . . Recycling Units . | . . . . Scanalyzers . | . . . . Garrison Access . | . . . . Data Cores Recovered . | . . . . Used . | . . . . Hacking Detections . | . . . . Full Trace Events . | . . . . Feedback Events . | . . . . Feedback Blocked . | . . . . Robot Schematics Acquired . | . . . . Robots Built . | . . . . Authchips . | . . . . Time . | . . . . Total Robot Build Rating . | . . . . Part Schematics Acquired . | . . . . Parts Built . | . . . . Authchips . | . . . . Time . | . . . . Total Part Build Rating . | . . . . Parts Repaired . | . . . . Time . | . . . . Parts Recycled . | . . . . Recycled Matter . | . . . . Retrieved Matter . | . . . . Retrieved Components . | . . . . Parts Scanalyzed . | . . . . Part Schematics Acquired . | . . . . Parts Damaged . | . . . . Bothacking | -11 -10 -9 -9 ------------ Run | Yrd Mat Mat Min Used RIF Installer . | . . . . Robots Hacked . | . . . . Non-combat . | . . . . Combat . | . . . . Robot Hacks Applied . | . . . . Relay Couplers Released . | . . . . Fabnet Peak Effective % . | . . . . Robots Rewired . | . . . . Allies Hacked . | . . . . Hacks Repelled . | . . . . Allies | -11 -10 -9 -9 -------- Run | Yrd Mat Mat Min Total Allies . | . . . . Largest Group . | . . . . Highest-Rated Group . | . . . . Highest-Rated Ally . | . . . . Total Orders . | . . . . Ally Attacks . | . . . . Total Damage . | . . . . Kills . | . . . . Allies Corrupted . | . . . . Allies Melted . | . . . . Intel | -11 -10 -9 -9 ------- Run | Yrd Mat Mat Min Robot Analysis Total . | . . . . Derelict Logs Recovered . | . . . . Drone Launches . | . . . . Drone Recoveries . | . . . . Exploration | -11 -10 -9 -9 ------------- Run | Yrd Mat Mat Min Turns Passed 697 | 86 483 112 16 Spaces Moved 402 | 46 257 83 16 Core 74 | 17 . 41 16 Treads 310 | 29 257 24 . Legs . | . . . . Wheels . | . . . . Hover 18 | . . 18 . Flight . | . . . . Fastest Speed 50 | 50 160 60 100 Average Speed 149 | 167 160 118 100 Slowest Speed 300 | 250 160 300 100 Overloaded Moves . | . . . . Propulsion Burnouts . | . . . . Robots Hopped . | . . . . Cave-ins Triggered . | . . . . Exploration Rate (%) 17 | 5 46 11 6 Regions Visited 3 Branch Regions 1 Pre-discovered Areas . | . . . . Known Exits Taken . | . . . . Unknown Exits Taken 3 | 1 1 1 . Scrap Searched . | . . . . Spaces Dug . | . . . . Terrain Destroyed 63 | . . 63 . Melee . | . . . . Projectile . | . . . . AOE 63 | . . 63 . Terrain Rammed . | . . . . Walls Destroyed . | . . . . Machines Disabled . | . . . . Actions | -11 -10 -9 -9 --------- Run | Yrd Mat Mat Min Total 453 | 52 295 90 16 Wait 2 | . 2 . . Move 399 | 45 256 82 16 Hop . | . . . . Pick Up 5 | 1 4 . . Fast Attach 9 | 6 2 1 . Attach 1 | . . 1 . Detach 2 | . 2 . . Swap . | . . . . Drop 3 | . 3 . . Fire 26 | . 20 6 . Melee . | . . . . Ram . | . . . . Kick . | . . . . Crush 6 | . 6 . . Escape Stasis . | . . . . Rewire . | . . . . Trap . | . . . . Miscellaneous . | . . . . Route ------- -11/Scrapyard -10/Materials (discovered 2 exits: [*Mat] / [*Min]) -9/Materials -9/Mines History --------- Turn | Location | Event 28 | -11/Scrapyard | Discovered new exit (range 15) 87 | -11/Scrapyard | Entered Materials 327 | -10/Materials | Build established: Mutant 420 | -10/Materials | Discovered new exit (range 7) 453 | -10/Materials | Discovered new exit (range 16) 570 | -10/Materials | Core integrity fell below 50% 570 | -10/Materials | Entered another Materials area 570 | -9/Materials | Evolved 2 slots: Propulsion x1, Weapon x1 662 | -9/Materials | Discovered new exit (range 14) 668 | -9/Materials | Core integrity fell below 50% 681 | -9/Materials | Core integrity fell below 20% 682 | -9/Materials | Entered Mines 683 | -9/Mines | Lost 5 parts (1p3n1w) 698 | -9/Mines | Destroyed by S-10 Pest with Light Assault Rifle Last Messages --------------- 00601_ Lgt. Treads destroyed. 00608_ W-16 Scout destroyed. 00624_ Y-45 Defender destroyed. 00626_ G-34 Mercenary destroyed. 00626_ U-05 Engineer lays Concrete. 00628_ Nuclear Reactor explodes. 00628_ Hvy. Ion Engine destroyed. 00628_ U-05 Engineer lays Concrete. 00632_ U-05 Engineer builds a Wall. 00635_ Grenade Launcher destroyed. 00638_ The unstable cave ceiling collapses. 00638_ Acquired 22 matter. 00640_ Critical hit (Burn: +37). 00640_ Acquired Hover Unit. 00652_ Hover Unit destroyed. 00662_ EXIT=FOUND 00681_ K-01 Serf collects debris. LOCATION=UNKNOWN GOAL=ESCAPE Something is scanning the area. Map ----- +----------------------------------------------------+ | | | | | | | | | | | | | | | | | ??????????????????????????????????????????? | | ??????????????????????????????????????????? | | ??????????????????????????????????????????? | | ??????????????????????????????????????????? | | ??????????????????????????????????????????? | | ?????####?????????????????????????????????? | | ???### #?????????????????????????????????? | | ??## ?????????????????????????????????? | | ??# #?????????????????????????????????? | | ??# ########### #????????????????????? | | ??# #????????????????????? | | ??# #????????????????????? | | ??# ##### ########????????????????????? | | ??## ##???# ######??????????????????????? | | ???####?????# s#??????????????????????? | | ????????????# ####s#??????????????????????? | | ????????????# #??# #??????????????????????? | | ????????????# #??#@#??????????????????????? | | ???????????? ??# #??????????????????????? | | ???????????? ??# b??????????????????????? | | ???????????? ??###??????????????????????? | | ???????????? ???????????????????????????? | | ???????????? ???????????????????????????? | | ???????????? ???????????????????????????? | | ??????????? ??????????????????????????? | | ??????????? ###??????????????????????????? | | ???????????##?????????????????????????????? | | ??????????????????????????????????????????? | | ??????????????????????????????????????????? | | ??????????????????????????????????????????? | | ??????????????????????????????????????????? | | ??????????????????????????????????????????? | | ??????????????????????????????????????????? | | ??????????????????????????????????????????? | | ??????????????????????????????????????????? | | ??????????????????????????????????????????? | | ??????????????????????????????????????????? | | ??????????????????????????????????????????? | | ??????????????????????????????????????????? | | ??????????????????????????????????????????? | | ??????????????????????????????????????????? | | ??????????????????????????????????????????? | +----------------------------------------------------+ Best States ------------- Heat Dissipation 28 Energy Generation 14 Energy Capacity 280 Matter Stores 300 Matter Capacity 300 Sight Range 16 Terrain Scan Density 10 Evasion (%) 53 Recoil Reduction 2 Item Schematics ----------------- None Robot Schematics ------------------ None Fabricated ------------ Nothing Alien Tech Used ----------------- None Achievements -------------- None Challenges ------------ None Game ------ Seed ProjectionBoreThermoblaster Manual? 0 Play Time 00:04:41 Cumulative 19.3 hours Start 2024.05.13 @ 22:00:29 End 2024.05.15 @ 17:14:00 Sessions 2 Manual Loads 0 Difficulty Rogue Special Mode None Game No. 35 Rogue 35 Adventurer 0 Explorer 0 Win Type - Total 0 Types 0/0/0/0/0/0/0/0/0 Lore% 19 Gallery% 32 Achievement% 29 Wizard Run 0 Options --------- Layout 0 ASCII 0 Keyboard 1 Movement Numpad Keybinds 0 Fullscreen 1 Font 24/X11 Map View 76x50 Zoom Use 0% Tactical HUD 1 Map Filters NONE Filters NONE Steam 1 RUN: 7aa785f8-19cd-44b2-ab4e-a531152bd22a